Cogmind - Beta 17 *** ADVENTURER MODE // 2026.06.29 @ 23:35:53 Player: smidge Result: Self-destructed Performance ------------- Evolutions (3) 1500 Regions Visited (8) 1600 Robots Destroyed (75) 375 Value Destroyed (2897) 2897 Prototype IDs (2) 40 Alien Tech Used (0) 0 Bonus (300) 300 TOTAL SCORE: 6712 Bonus ------- Met Imprinter 300 Cogmind --------- Core Integrity 573/700 Matter 296/300 Energy 107/125 System Corruption 2% Temperature Cool (74) Movement Treading (465) Ox4 Location -6/Proximity Caves Parts ------- > --- POWER (1) -------- Light Ion Engine > --- PROPULSION (3) --- Advanced Treads Advanced Treads > --- UTILITY (7) ------ Improved Heat Sink Humpback Makeshift Light Armor Plating Hacking Suite > --- WEAPON (2) ------- Heavy Laser > --- INVENTORY (35) --- Light Nuclear Core Improved Deuterium Engine Improved Deuterium Engine Carbon-fiber Leg Carbon-fiber Leg Carbon-fiber Leg Wheel Compact Wheel Compact Wheel Subdweller Monowheel Subdweller Monowheel Heat Sink Heat Sink Improved Terrain Scan Processor Improved Targeting Computer Melee Analysis Suite Recoil Stabilizer Light Armor Plating Improved Shield Generator Hacking Suite Relay Coupler [Programmer] (96) Relay Coupler [Programmer] (79) Relay Coupler [Programmer] (71) Relay Coupler [Programmer] (69) Relay Coupler [Programmer] (85) Heavy Laser Missile Launcher Missile Launcher Missile Launcher Dirty Bomb Trap Fire Trap Peak State ------------ > --- POWER ------------ Light Angular Momentum Engine > --- PROPULSION ------- Compact Wheel Compact Wheel Compact Wheel > --- UTILITY ---------- Improved Heat Sink Humpback Improved Terrain Scan Processor Improved Light Armor Plating Hardlight Generator Hacking Suite > --- WEAPON ----------- Heavy Laser Heavy Laser > --- INVENTORY -------- Light Ion Engine Light Ion Engine Light Nuclear Core Improved Deuterium Engine Improved Deuterium Engine Advanced Treads Carbon-fiber Leg Carbon-fiber Leg Carbon-fiber Leg Compact Wheel Compact Wheel Compact Wheel Compact Wheel Subdweller Monowheel Subdweller Monowheel Heat Sink Heat Sink Improved Heat Sink Improved Terrain Scan Processor Improved Targeting Computer Melee Analysis Suite Recoil Stabilizer Light Armor Plating Tractor Beam Beam Rifle Particle Gun Subdweller Laser Heavy Laser Missile Launcher Missile Launcher Missile Launcher [Rating: 40] Favorites ----------- Power Light Ion Engine Engine Light Ion Engine Propulsion Compact Wheel Treads Advanced Treads Wheel Compact Wheel Utility Humpback Device Improved Heat Sink Storage Humpback Processor Improved Terrain Scan Processor Hackware Hacking Suite Protection Improved Light Armor Plating Weapon Heavy Laser Energy Gun Heavy Laser Ballistic Gun Heavy Assault Rifle Launcher Grenade Launcher Build | -11 -10 -10 -8 -7 -7 -7 -7 -6 ------- Run | Yrd Mat Sub Mat Fac Low Low Zio Pro Slots Evolved 6 | . . . 4 2 . . . . Power . | . . . . . . . . . Propulsion 1 | . . . 1 . . . . . Utility 5 | . . . 3 2 . . . . Weapon . | . . . . . . . . . Parts Attached 59 | 6 1 13 24 6 2 5 . 2 Power 8 | 1 . 3 3 . . 1 . . Engine 8 | 1 . 3 3 . . 1 . . Core . | . . . . . . . . . Reactor . | . . . . . . . . . Propulsion 18 | 2 . 4 9 . 1 . . 2 Treads 6 | 2 . . 3 . . . . 1 Leg . | . . . . . . . . . Wheel 12 | . . 4 6 . 1 . . 1 Hover . | . . . . . . . . . Flight . | . . . . . . . . . Utility 17 | 1 1 2 7 4 . 2 . . Device 8 | . 1 1 3 2 . 1 . . Storage 2 | 1 . . 1 . . . . . Processor 1 | . . . 1 . . . . . Hackware 1 | . . . . 1 . . . . Protection 5 | . . 1 2 1 . 1 . . Artifact . | . . . . . . . . . Weapon 16 | 2 . 4 5 2 1 2 . . Energy Gun 5 | . . 1 1 2 . 1 . . Energy Cannon . | . . . . . . . . . Ballistic Gun 8 | 2 . 2 4 . . . . . Ballistic Cannon . | . . . . . . . . . Launcher 3 | . . 1 . . 1 1 . . Special Weapon . | . . . . . . . . . Impact Weapon . | . . . . . . . . . Slashing Weapon . | . . . . . . . . . Piercing Weapon . | . . . . . . . . . Special Melee Weapon . | . . . . . . . . . Unidentified Prototypes . | . . . . . . . . . Parts Lost 26 | . . 3 10 1 1 3 . 8 Power 3 | . . 1 . . . 1 . 1 Propulsion 8 | . . . 3 . 1 . . 4 Utility 8 | . . 1 2 1 . 2 . 2 Weapon 7 | . . 1 5 . . . . 1 Highest Loss Streak 5 | . . 2 3 1 1 2 . 5 To Critical Strikes 2 | . . 1 . . . . . 1 Average Backups 24 | 2 6 7 21 29 30 31 32 30 Power 3 | . 1 . 2 5 5 4 4 3 Propulsion 7 | 1 2 2 7 10 9 10 11 8 Utility 9 | . 1 1 7 9 9 9 13 14 Weapon 4 | . 1 2 3 5 7 7 4 4 Tool/Special . | . . . . . . . . . Unused Backups 32 | . . 5 1 . . . 3 23 Power 3 | . . . . . . . . 3 Propulsion 8 | . . 2 . . . . . 6 Utility 17 | . . 2 1 . . . 1 13 Weapon 4 | . . 1 . . . . 2 1 Tool/Special . | . . . . . . . . . Average Slot Usage (%) 89 | . 93 99 82 90 91 91 92 80 Engine 8 | . 14 13 7 7 7 7 7 6 Treads 6 | . 28 16 1 . . . . 10 Wheel 16 | . . 11 21 23 22 23 23 7 Device 8 | . 8 3 12 14 15 8 7 7 Storage 9 | . 14 14 14 7 7 7 7 7 Processor 3 | . . . 3 7 7 7 7 2 Hackware 4 | . . . . 7 7 7 7 7 Protection 10 | . . 10 4 6 7 12 15 15 Energy Gun 11 | . . 11 1 11 8 13 15 14 Ballistic Gun 4 | . 28 6 15 2 . . . . Launcher 2 | . . 9 . . 5 1 . . Peak Build Rating 40 | 6 7 14 28 40 40 39 40 40 Average Rating 29 | 4 6 10 21 36 39 37 39 39 On Entrance 23 | . 6 7 14 25 40 39 37 40 Avg Prop Armor Cover (%) 2 | . . . 2 . . . . . Naked Turns . | . . . . . . . . . Heaviest Build 228 | 12 13 20 226 226 228 228 219 219 Greatest Support 60 | 40 40 40 60 48 48 48 48 48 Greatest Overweight (x) 10 | . . . 10 4 4 4 4 4 Average Overweight (x) 2 | . . . 5 4 4 4 4 4 Largest Inventory Capacity 35 | 8 8 8 35 35 35 35 35 35 Average Capacity 29 | 6 8 8 34 35 35 35 35 35 Most Carried 35 | 4 8 8 35 32 33 34 35 35 Average Carried 25 | 2 6 7 21 29 31 33 34 32 Final Capacity 35 | 8 8 8 35 35 35 35 35 35 Final Carried 35 | 4 8 8 33 31 33 33 35 31 Class Distribution -------------------- 77% | Hauler-Mutant 17% | Mutant 4% | Scavenger-Mutant Dominant Class ---------------- Mutant | -10/Materials Mutant | -10/Subcaves Hauler-Mutant | -8/Materials Hauler-Mutant | -7/Factory Hauler-Mutant | -7/Lower Caves Hauler-Mutant | -7/Lower Caves Hauler-Mutant | -7/Zion Hauler-Mutant | -6/Proximity Caves Resources | -11 -10 -10 -8 -7 -7 -7 -7 -6 ----------- Run | Yrd Mat Sub Mat Fac Low Low Zio Pro Matter Collected 1678 | 257 19 275 744 65 80 94 9 135 Remotely . | . . . . . . . . . Salvage Created 2894 | . 19 355 1397 342 281 188 . 312 Parts 118 | . 1 17 62 8 17 7 . 6 Haulers Intercepted 1 | . . . 1 . . . . . Recyclers Shooed . | . . . . . . . . . Parts Field Recycled . | . . . . . . . . . Retrieved Matter . | . . . . . . . . . Parts Self-Destructed 29 | . . 5 . . 12 7 . 5 Prevented 3 | . . . . . 1 2 . . Parts Restored . | . . . . . . . . . Kills | -11 -10 -10 -8 -7 -7 -7 -7 -6 ------- Run | Yrd Mat Sub Mat Fac Low Low Zio Pro Combat Hostiles Destroyed 68 | . . 13 24 6 11 7 . 7 Guns 48 | . . 8 24 6 2 3 . 5 AOE 19 | . . 5 . . 9 4 . 1 Classes Destroyed 14 | . 1 1 8 2 1 1 . . Worker 1 | . . . 1 . . . . . Hauler 1 | . . . 1 . . . . . Recycler 2 | . . . 2 . . . . . Operator 1 | . . . . 1 . . . . Watcher 2 | . 1 . 1 . . . . . Swarmer 16 | . . . 3 . 8 4 . 1 Grunt 22 | . . . 13 4 1 1 . 3 Brawler 3 | . . . 1 1 . . . 1 Duelist 1 | . . . 1 . . . . . Sentry 9 | . . . 6 . 1 1 . 1 Hunter 2 | . . . . 1 . . . 1 Programmer 1 | . . . . . . 1 . . Behemoth 1 | . . . . . 1 . . . Subdweller 13 | . . 13 . . . . . . Best Kill Streak 6 | . 1 5 6 3 4 4 . 4 Combat Bots Only 5 | . . 5 5 3 4 4 . 4 Max Kills in Single Turn 4 | . 1 2 1 1 4 2 . 1 Gunslinging . | . . . . . . . . . Exploded 3 | . . 1 . . 3 2 . 1 Melee . | . . . . . . . . . Uniques/NPCs Destroyed . | . . . . . . . . . Combat | -11 -10 -10 -8 -7 -7 -7 -7 -6 -------- Run | Yrd Mat Sub Mat Fac Low Low Zio Pro Hostile Shots Fired 473 | . . 47 205 28 68 48 . 77 Missed 155 | . . 14 57 9 36 13 . 26 Hits 318 | . . 33 148 19 32 35 . 51 Melee 11 | . . . 6 1 . . . 4 Projectile 307 | . . 33 142 18 32 35 . 47 AOE 3 | . . 3 . . . . . . Critical Strikes 21 | . . 2 14 2 . 1 . 2 Damage Taken 3687 | . . 672 1725 179 220 262 . 629 Core 550 | . . 86 337 18 . 53 . 56 Absorbed by Shields 304 | . . . 108 68 80 48 . . Ignored by Resistances 1136 | . . 174 524 72 89 95 . 182 Regen/Repaired (Parts) 386 | . . . 287 . . . 99 . Core Remaining (%) 67 | 100 . 65 38 . . . . . Volleys Fired 197 | . 2 31 97 21 14 13 . 19 Largest 2 | . 2 2 2 2 2 2 . 2 Hottest 138 | . 40 90 90 138 138 138 . 138 Shots Fired 361 | . 4 53 175 40 27 24 . 38 Gun 333 | . 4 38 175 40 22 21 . 33 Cannon . | . . . . . . . . . Launcher 28 | . . 15 . . 5 3 . 5 Special . | . . . . . . . . . Kinetic 179 | . 4 16 159 . . . . . Thermal 154 | . . 22 16 40 22 21 . 33 Explosive 28 | . . 15 . . 5 3 . 5 Electromagnetic . | . . . . . . . . . Robot Hit Streak 37 | . 1 32 24 37 16 9 . 22 Robot Miss Streak 3 | . 3 1 2 1 1 1 . 1 Penetration Max . | . . . . . . . . . Secondary Targets 8 | . . 2 5 . . . . 1 Max Gunslinging Chain 1 | . . 1 1 . . . . 1 Shots Hit Robots 294 | . 1 41 144 34 24 19 . 31 Core Hits 145 | . 1 23 56 15 20 12 . 18 Critical Kills 1 | . . . 1 . . . . . Critical Parts Destroyed 1 | . . . 1 . . . . . Critical Strikes 7 | . . . 3 1 1 . . 2 Burn 5 | . . . 1 1 1 . . 2 Destroy 2 | . . . 2 . . . . . Melee Attacks . | . . . . . . . . . Impact . | . . . . . . . . . Slashing . | . . . . . . . . . Piercing . | . . . . . . . . . Sneak Attacks . | . . . . . . . . . Combat Hostiles . | . . . . . . . . . Follow-up Attacks . | . . . . . . . . . Damage Inflicted 7062 | . 13 1515 2388 638 831 715 . 962 Guns 4817 | . 13 555 2337 638 405 320 . 549 Cannons . | . . . . . . . . . Explosions 2194 | . . 960 . . 426 395 . 413 Melee . | . . . . . . . . . Ramming 51 | . . . 51 . . . . . Kinetic 2273 | . 13 167 2093 . . . . . Thermal 2544 | . . 388 244 638 405 320 . 549 Explosive 2194 | . . 960 . . 426 395 . 413 Electromagnetic . | . . . . . . . . . Impact . | . . . . . . . . . Slashing . | . . . . . . . . . Piercing . | . . . . . . . . . Highest Corruption 1 | . . . 1 . . 1 1 1 Average Corruption 1 | . . . 1 . . 1 1 1 Corruption Purged . | . . . . . . . . . Corruption Blocked . | . . . . . . . . . Effects 15 | . . . 2 . . . 3 10 Message Errors 2 | . . . 1 . . . 1 . Matter Fused 6 | . . . . . . . 1 5 Energy Discharges 1 | . . . . . . . 1 . Data Loss (minor) 4 | . . . . . . . . 4 Data Loss (major) 2 | . . . 1 . . . . 1 Overload Shots . | . . . . . . . . . Overflow Damage 48 | . . . 29 . . 19 . . Projectiles . | . . . . . . . . . Explosions 19 | . . . . . . 19 . . Melee 29 | . . . 29 . . . . . Knockbacks 1 | . . . 1 . . . . . Impact 1 | . . . 1 . . . . . Kinetic . | . . . . . . . . . Secondary . | . . . . . . . . . Self-Inflicted Damage 25 | . . . 25 . . . . . Shots . | . . . . . . . . . Rammed 1 | . . . 1 . . . . . Targets Rammed 1 | . . . 1 . . . . . Kicked . | . . . . . . . . . Crushed . | . . . . . . . . . Highest Temperature 228 | . . 2 152 228 168 216 . 150 Average Temperature 64 | . . 2 27 84 88 81 . 72 Received Heat Transfer 1649 | . . 180 1093 114 16 66 . 180 Effects 1 | . . . . 1 . . . . Energy Bleed 1 | . . . . 1 . . . . Siege Activations . | . . . . . . . . . Martial Activations . | . . . . . . . . . Shielding Activations . | . . . . . . . . . Robots Disrupted . | . . . . . . . . . Combat Hostiles . | . . . . . . . . . Robots Corrupted . | . . . . . . . . . Combat Hostiles . | . . . . . . . . . Parts Fried . | . . . . . . . . . Impact Corruptions 1 | . . . 1 . . . . . Robots Melted 1 | . . . . . . . . 1 Combat Hostiles 1 | . . . . . . . . 1 Parts Melted 16 | . . 2 1 6 1 1 . 5 Heat Transferred 4942 | . . 475 508 1332 814 592 . 1221 Parts Sabotaged . | . . . . . . . . . Parts Stolen . | . . . . . . . . . Parts Stripped . | . . . . . . . . . Power Chain Reactions . | . . . . . . . . . Alert | -11 -10 -10 -8 -7 -7 -7 -7 -6 ------- Run | Yrd Mat Sub Mat Fac Low Low Zio Pro Maximum Alert Level . | . . . . . . . . . Low Security (%) 100 | 100 100 . 100 100 . . . . Level 1 . | . . . . . . . . . Level 2 . | . . . . . . . . . Level 3 . | . . . . . . . . . Level 4 . | . . . . . . . . . Level 5 . | . . . . . . . . . High Security . | . . . . . . . . . Max Security . | . . . . . . . . . Peak Influence 100 | . 7 . 100 65 . . . . Initial 15 | . . . . 15 . . . . Average 28 | . . . 37 22 . . . . Influence Increases 1369 | . 7 . 627 155 250 170 . 160 Destroy 0b10 Robot/C 1100 | . . . 480 120 220 140 . 140 Destroy 0b10 Robot/NC 35 | . 5 . 25 5 . . . . Destroy Leader 226 | . 2 . 114 30 30 30 . 20 Successful Hack 6 | . . . 6 . . . . . Destroy Structure 2 | . . . 2 . . . . . Influence Decreases 1369 | . 7 . 586 141 305 170 . 160 Entered New Map 52 | . . . . 26 26 . . . Time Decay 1118 | . 7 . 427 115 269 170 . 130 Lost Part 130 | . . . 90 . 10 . . 30 Purge Threat 69 | . . . 69 . . . . . Squads Dispatched 4 | . . . 1 2 . . . 1 Investigation 1 | . . . 1 . . . . . Extermination 1 | . . . . 1 . . . . Reinforcement 1 | . . . . 1 . . . . Assault 1 | . . . . . . . . 1 Garrison . | . . . . . . . . . Intercept . | . . . . . . . . . Searches Triggered . | . . . . . . . . . Construction Impeded . | . . . . . . . . . Haulers Reinforced . | . . . . . . . . . Active Scanning Responses . | . . . . . . . . . Cargo Convoy Interrupts . | . . . . . . . . . Stealth | -11 -10 -10 -8 -7 -7 -7 -7 -6 --------- Run | Yrd Mat Sub Mat Fac Low Low Zio Pro Distress Signals 5 | . . . 3 2 . . . . Communications Jammed . | . . . . . . . . . Distress Signals . | . . . . . . . . . Times Spotted 78 | . 2 14 28 7 9 7 . 11 Peak Tracking Total 8 | . 1 5 8 3 4 4 . 5 Tactical Retreats . | . . . . . . . . . Traps | -11 -10 -10 -8 -7 -7 -7 -7 -6 ------- Run | Yrd Mat Sub Mat Fac Low Low Zio Pro Traps Triggered 2 | . . 1 1 . . . . . Indirectly . | . . . . . . . . . Trap Hack Attempts . | . . . . . . . . . Triggered . | . . . . . . . . . Disarmed . | . . . . . . . . . Reprogrammed . | . . . . . . . . . Reused . | . . . . . . . . . Traps Extracted . | . . . . . . . . . Installed . | . . . . . . . . . Triggered . | . . . . . . . . . Most Traps Carried 2 | . . . . . 2 2 2 2 Machines | -11 -10 -10 -8 -7 -7 -7 -7 -6 ---------- Run | Yrd Mat Sub Mat Fac Low Low Zio Pro Machines Disabled . | . . . . . . . . . Max in Single Turn . | . . . . . . . . . Garrison Access 1 | . . . . 1 . . . . Machines Repaired . | . . . . . . . . . Machines Dismantled . | . . . . . . . . . Machines Sabotaged . | . . . . . . . . . Overloaded Fab Kills . | . . . . . . . . . Hacking | -11 -10 -10 -8 -7 -7 -7 -7 -6 --------- Run | Yrd Mat Sub Mat Fac Low Low Zio Pro Machines Accessed 7 | . 1 . 4 2 . . . . Terminals 5 | . 1 . 3 1 . . . . Fabricators . | . . . . . . . . . Repair Stations 1 | . . . 1 . . . . . Recycling Units . | . . . . . . . . . Scanalyzers . | . . . . . . . . . Garrison Access 1 | . . . . 1 . . . . Total Hacks 18 | . 2 . 12 4 . . . . Successful 7 | . 1 . 5 1 . . . . Failed 11 | . 1 . 7 3 . . . . Catastrophic 3 | . . . 3 . . . . . Database Lockouts . | . . . . . . . . . Manual 6 | . . . 4 2 . . . . Terminals 14 | . 2 . 10 2 . . . . Fabricators . | . . . . . . . . . Repair Stations 2 | . . . 2 . . . . . Recycling Units . | . . . . . . . . . Scanalyzers . | . . . . . . . . . Garrison Access 2 | . . . . 2 . . . . Terminal Hacks 4 | . 1 . 3 . . . . . Prototype ID Bank 1 | . . . 1 . . . . . Branch Access Points 1 | . . . 1 . . . . . Unreport Threat 1 | . . . 1 . . . . . Hauler Manifests 1 | . 1 . . . . . . . Fabricator Hacks . | . . . . . . . . . Repair Station Hacks 2 | . . . 2 . . . . . Scan Component 1 | . . . 1 . . . . . Repair 1 | . . . 1 . . . . . Recycling Unit Hacks . | . . . . . . . . . Scanalyzer . | . . . . . . . . . Garrison Access Hacks 1 | . . . . 1 . . . . Seal Access 1 | . . . . 1 . . . . Unauthorized Hacks . | . . . . . . . . . Terminals . | . . . . . . . . . Fabricators . | . . . . . . . . . Repair Stations . | . . . . . . . . . Recycling Units . | . . . . . . . . . Scanalyzers . | . . . . . . . . . Garrison Access . | . . . . . . . . . Data Cores Recovered . | . . . . . . . . . Used . | . . . . . . . . . Hacking Detections 6 | . . . 4 2 . . . . Full Trace Events 1 | . . . 1 . . . . . Feedback Events . | . . . . . . . . . Feedback Blocked . | . . . . . . . . . Robot Schematics Acquired . | . . . . . . . . . Robots Built . | . . . . . . . . . Authchips . | . . . . . . . . . Time . | . . . . . . . . . Total Robot Build Rating . | . . . . . . . . . Part Schematics Acquired . | . . . . . . . . . Parts Built . | . . . . . . . . . Authchips . | . . . . . . . . . Time . | . . . . . . . . . Total Part Build Rating . | . . . . . . . . . Part Studies Acquired . | . . . . . . . . . Parts Repaired 1 | . . . 1 . . . . . Time 26 | . . . 26 . . . . . Parts Recycled . | . . . . . . . . . Recycled Matter . | . . . . . . . . . Retrieved Matter . | . . . . . . . . . Retrieved Components . | . . . . . . . . . Parts Scanalyzed . | . . . . . . . . . Part Schematics Acquired . | . . . . . . . . . Parts Damaged . | . . . . . . . . . Bothacking | -11 -10 -10 -8 -7 -7 -7 -7 -6 ------------ Run | Yrd Mat Sub Mat Fac Low Low Zio Pro Used RIF Installer . | . . . . . . . . . Robots Hacked . | . . . . . . . . . Non-combat . | . . . . . . . . . Combat . | . . . . . . . . . Robot Hacks Applied . | . . . . . . . . . Relay Couplers Released . | . . . . . . . . . Fabnet Peak Effective % . | . . . . . . . . . Robots Rewired . | . . . . . . . . . Allies Hacked . | . . . . . . . . . Hacks Repelled . | . . . . . . . . . Allies | -11 -10 -10 -8 -7 -7 -7 -7 -6 -------- Run | Yrd Mat Sub Mat Fac Low Low Zio Pro Total Allies . | . . . . . . . . . Largest Group . | . . . . . . . . . Highest-Rated Group . | . . . . . . . . . Highest-Rated Ally . | . . . . . . . . . Total Orders . | . . . . . . . . . Ally Attacks . | . . . . . . . . . Total Damage . | . . . . . . . . . Kills . | . . . . . . . . . Allies Corrupted . | . . . . . . . . . Allies Melted . | . . . . . . . . . Intel | -11 -10 -10 -8 -7 -7 -7 -7 -6 ------- Run | Yrd Mat Sub Mat Fac Low Low Zio Pro Active Infowar (turns) 879 | . 128 310 441 . . . . . Optics 426 | . . 74 352 . . . . . Terrain 89 | . . . 89 . . . . . Structural 364 | . 128 236 . . . . . . Robot Analysis Total . | . . . . . . . . . Derelict Logs Recovered 6 | . . 1 . . 2 1 2 . Drone Launches . | . . . . . . . . . Drone Recoveries . | . . . . . . . . . Exploration | -11 -10 -10 -8 -7 -7 -7 -7 -6 ------------- Run | Yrd Mat Sub Mat Fac Low Low Zio Pro Turns Passed 8166 | 77 208 1487 1121 393 687 1115 1098 1980 Spaces Moved 4171 | 44 122 1008 404 199 400 668 682 644 Core 5 | 5 . . . . . . . . Treads 965 | 39 122 510 11 . . . . 283 Legs . | . . . . . . . . . Wheels 3201 | . . 498 393 199 400 668 682 361 Hover . | . . . . . . . . . Flight . | . . . . . . . . . Fastest Speed 50 | 50 160 110 140 160 160 160 160 160 Average Speed 176 | 147 160 135 176 160 160 160 160 294 Slowest Speed 552 | 160 160 160 552 160 160 160 160 465 Overloaded Moves . | . . . . . . . . . Propulsion Burnouts . | . . . . . . . . . Robots Hopped . | . . . . . . . . . Potential Cave-ins . | . . . . . . . . . Cave-ins Triggered . | . . . . . . . . . Exploration Rate (%) 50 | 3 28 63 44 8 56 84 82 82 Regions Visited 8 Branch Regions 5 Pre-discovered Areas 2 | . . 1 . . . . 1 . Known Exits Taken . | . . . . . . . . . Unknown Exits Taken 8 | 1 1 1 1 1 1 1 1 . Scrap Searched 19 | . . 11 . . 2 2 3 1 Spaces Dug . | . . . . . . . . . Terrain Destroyed 154 | . . 80 . . 26 21 . 27 Melee . | . . . . . . . . . Projectile . | . . . . . . . . . AOE 154 | . . 80 . . 26 21 . 27 Terrain Rammed . | . . . . . . . . . Walls Destroyed . | . . . . . . . . . Machines Disabled . | . . . . . . . . . Actions | -11 -10 -10 -8 -7 -7 -7 -7 -6 --------- Run | Yrd Mat Sub Mat Fac Low Low Zio Pro Total 4618 | 53 130 1080 634 233 419 688 691 690 Wait 82 | . 2 6 47 5 1 . . 21 Move 4163 | 43 121 1007 403 198 399 667 681 644 Hop . | . . . . . . . . . Pick Up 82 | 4 4 9 53 1 3 2 6 . Fast Attach 22 | 6 1 4 8 2 . 1 . . Attach 25 | . . 5 10 3 1 2 . 4 Detach . | . . . . . . . . . Swap 22 | . . 5 10 1 1 3 . 2 Drop 24 | . . 13 5 2 . . 4 . Fire 197 | . 2 31 97 21 14 13 . 19 Melee . | . . . . . . . . . Ram 1 | . . . 1 . . . . . Kick . | . . . . . . . . . Crush . | . . . . . . . . . Escape Stasis . | . . . . . . . . . Rewire . | . . . . . . . . . Trap . | . . . . . . . . . Miscellaneous . | . . . . . . . . . Route ------- -11/Scrapyard -10/Materials (discovered 2 exits: [*Min] / [*Sub]) -10/Subcaves -8/Materials -7/Factory -7/Lower Caves -7/Lower Caves -7/Zion -6/Proximity Caves History --------- Turn | Location | Event 17 | -11/Scrapyard | Discovered new exit (range 15) 78 | -11/Scrapyard | Entered Materials 163 | -10/Materials | Discovered new exit (range 15) 261 | -10/Materials | Discovered new exit (range 15) 286 | -10/Materials | Entered Subcaves 317 | -10/Subcaves | Build established: Mutant 491 | -10/Subcaves | A swath of the cavern ceiling suddenly collapsed 491 | -10/Subcaves | Ambushed by angry Subdweller bent on revenge 937 | -10/Subcaves | Learned location of Zion (-7) 937 | -10/Subcaves | Met a Zionite searching for "candidates" 1034 | -10/Subcaves | Ambushed by Subdwellers from Twisted Machinery 1244 | -10/Subcaves | Shifting Twisted Machinery released Shrapnel Trap 1250 | -10/Subcaves | Shifting Twisted Machinery released Humpback 1548 | -10/Subcaves | Shifting Twisted Machinery released Sub. Monowheel 1661 | -10/Subcaves | Ambushed by Subdwellers from Twisted Machinery 1671 | -10/Subcaves | Ambushed by Subdweller buried in earth 1671 | -10/Subcaves | Ambushed by Subdweller buried in earth 1735 | -10/Subcaves | Discovered new exit (range 3) 1755 | -10/Subcaves | A swath of the cavern ceiling suddenly collapsed 1773 | -10/Subcaves | Entered Materials 1773 | -8/Materials | Evolved 4 slots: Propulsion x1, Utility x3 2081 | -8/Materials | Build established: Hauler-Mutant 2214 | -8/Materials | Lost 3 parts (1n2w) 2350 | -8/Materials | Repaired Humpback 2786 | -8/Materials | Core integrity fell below 50% 2866 | -8/Materials | Discovered new exit (range 16) 2881 | -8/Materials | Lost 3 parts (1u2w) 2894 | -8/Materials | Entered Factory 2894 | -7/Factory | Evolved 2 slots: Utility x2 3279 | -7/Factory | Discovered new exit (range 5) 3287 | -7/Factory | Entered Lower Caves 3304 | -7/Lower Caves | Spotted B-75 Beast 3394 | -7/Lower Caves | Destroyed B-75 Beast 3668 | -7/Lower Caves | Attracted the attention of an 0b10 checkpoint 3917 | -7/Lower Caves | Discovered new exit (range 13) 3948 | -7/Lower Caves | Learned Factory interactive machine intel 3951 | -7/Lower Caves | Learned Factory terminal intel 3974 | -7/Lower Caves | Entered another Lower Caves area 4209 | -7/Lower Caves | Attracted the attention of an 0b10 checkpoint 5048 | -7/Lower Caves | Discovered new exit (range 13) 5089 | -7/Lower Caves | Entered Zion 5125 | -7/Zion | Found Relay Coupler [Programmer] 5127 | -7/Zion | Found Relay Coupler [Programmer] 5130 | -7/Zion | Found Relay Coupler [Programmer] 5141 | -7/Zion | Found Relay Coupler [Programmer] 5143 | -7/Zion | Found Relay Coupler [Programmer] 5237 | -7/Zion | System corruption cleaned by Quarantine Array 5306 | -7/Zion | Learned location of 2 exits from Factory 5504 | -7/Zion | Learned Factory emergency access door positions 5637 | -7/Zion | Met Imprinter 5918 | -7/Zion | Learned location of Armory (-3) 6163 | -7/Zion | Discovered new exit (range 16) 6187 | -7/Zion | Entered Proximity Caves 6752 | -6/Proximity Caves | Attracted the attention of an 0b10 checkpoint 6848 | -6/Proximity Caves | Lost 5 parts (1p3n1u) 8158 | -6/Proximity Caves | Attracted the attention of an 0b10 outpost 8167 | -6/Proximity Caves | Self-destructed Last Messages --------------- 07968_ System corrupted: Matter fused (-10). 08032_ System corrupted: Substantial component data lost. 08049_ Searching scrap... 08049_ Found 70 Matter. 08049_ Found Energy Well. 08049_ Found 55 Matter. 08050_ Acquired 55 matter. 08054_ Acquired 70 matter. 08112_ System corrupted: Matter fused (-9). 08145_ System corrupted: Component data lost. 08157_ Penetrated by Slug. 08158_ Y-64 Sentinel: "DETECTED UNIDENTIFIED DERELICT." 08161_ S-27 Virus destroyed. 08161_ Switching to secondary target: Y-64 Sentinel. 08162_ Y-64 Sentinel: "REQUESTING BACKUP." 08165_ Imp. Light Armor Plating destroyed. 08166_ Penetrated by Slug. 08167_ Critical hit (Smash). 08167_ Hvy. Laser destroyed. 08167_ System corrupted by crushing effect (+1). Map ----- +----------------------------------------------------+ | ?????????????????????????????????????????????????? | | ?????????????????????????????????????????????????? | | ?????????????????????????????????????????????????? | | ?????????????????????????????????????????????????? | | ?????????????????????????????????????????????????? | | ?????????????????????????????????????????????????? | | ?????????????????????????????????????????????????? | | ?????????????????????????????????????????????????? | | ?????????????????????????????????????????????????? | | ?????????????????????????????????????????????????? | | ?????????????????????????????????????????????????? | | ?????????????????????????????????????????????????? | | ?????????????????????????????????????????????????? | | ?????????????????????????????????? ??????????????? | | ?????#??????????###???##?????????? ????????????? | | ?????# ???????## #??? ????????? ????????????? | | ?????# ?????## #??? #?????##? ????????????? | | ?????# #???## #??# #????""# ?????????????? | | ?????# #?## #???#$#???? $# ??????????????? | | ### ## #????# #???# ???????????????? | | # #???## #??# ?????????????????? | | ## ##?## #?? l #??????????????????? | | # ### #??Y #??????????????????? | | # ## ###g[### #????????????????? | | # ## ## b #????????????????? | | # ######## @ #????????????????? | | # #??????## #?????????? | | # #???????### # ## #?????????? | | #####?????# ### ####### ?????????? | | ?????## #?# #?????? # ?????????? | | #??????# ! # ??????? #?????????????? | | #???##### ## #?????? #?????????????? | | ##### ## ### ## #?????????????????????? | | ##?# ##?# ##?????????????????????? | | #??####???###??????????????????????? | | #### #???????????????????????????????? | | ##??# ### #???????????????????????????????? | | ##?? #???#???????????????????????????????? | | ##??## #???????????????????????????????????? | | ##????# ??????????????????????????????????? | | ????# $?????????????????????????????????? | | ##??? ###????????????????????????????????? | | #???# #??????????????????????????????????? | | ###???##### ##??????????????????????????????????? | | #?????????####???????????????????????????????????? | | ?????????????????????????????????????????????????? | | ?????????????????????????????????????????????????? | | ?????????????????????????????????????????????????? | | ?????????????????????????????????????????????????? | | ?????????????????????????????????????????????????? | +----------------------------------------------------+ Best States ------------- Heat Dissipation 48 Energy Generation 18 Energy Capacity 265 Matter Stores 300 Matter Capacity 300 Sight Range 21 Terrain Scan Range 16 Terrain Scan Density 110 Armor Coverage 300 Resistance: KI 20 Resistance: TH 20 Resistance: EX 20 Resistance: EM 20 Resistance: I 20 Resistance: S 20 Resistance: P 20 Evasion (%) 40 Recoil Reduction 2 Offensive Hacking 20 Item Schematics ----------------- None Robot Schematics ------------------ None Fabricated ------------ Nothing Repaired ---------- Humpback | 28% | -8/Materials Studied --------- None Alien Tech Used ----------------- None Achievements -------------- None Challenges ------------ None Game ------ Seed MicrowarpGammaRay Manual? 0 Play Time 00:41:13 Cumulative 63.3 hours Start 2026.06.29 @ 22:54:57 End 2026.06.29 @ 23:35:53 Sessions 1 Manual Loads 0 Difficulty Adventurer Special Mode None Game No. 52 Rogue 0 Adventurer 52 Explorer 0 Win Type - Total 0 Types 0/0/0/0/0/0/0/0/0/0 Lore% 31 Gallery% 41 Achievement% 35 Wizard Run 0 Options --------- Layout 0 ASCII 0 Keyboard 0 Movement Mouse Keybinds 0 Fullscreen 0 Font 16/SmallcapsGlow Map View 76x50 Zoom Use 0% Tactical HUD 1 Map Filters NONE Filters NONE Steam 1 RUN: ca4c8c38-5827-4a71-a74e-65260969ff87